Cogmind - Beta 15 @@@ ROGUE MODE // 2025.10.08 @ 18:15:30 Player: Maddymakesgames Result: Destroyed by P-60 Hacker with Shock Rifle Performance ------------- Evolutions (4) 2000 Regions Visited (7) 1400 Robots Destroyed (41) 205 Value Destroyed (1632) 1632 Prototype IDs (0) 0 Alien Tech Used (0) 0 Bonus (1112) 1112 TOTAL SCORE: 6349 Bonus ------- Pacifist 200 Follower Combat Kills 412 Entered DSFs 500 Cogmind --------- Core Integrity 0/850 Matter 300/300 Energy 100/100 System Corruption 3% Temperature Cool (0) Movement Core (50) Location -6/Factory Parts ------- > --- POWER (2) -------- (None) > --- PROPULSION (5) --- (None) > --- UTILITY (4) ------ (None) > --- WEAPON (4) ------- Chainsword > --- INVENTORY (5) ---- Heavy Laser Heavy Plasma Cannon Peak State ------------ > --- POWER ------------ Deuterium Engine > --- PROPULSION ------- Aluminum Leg Aluminum Leg Carbon-fiber Leg Carbon-fiber Leg > --- UTILITY ---------- Advanced Heat Sink Small Storage Unit Thermal Shield > --- WEAPON ----------- Heavy Laser Heavy Laser Heavy Plasma Cannon Minigun > --- INVENTORY -------- (None) [Rating: 38] Favorites ----------- Power Ion Engine Engine Ion Engine Power Core Light Nuclear Core Propulsion Aluminum Leg Treads Light Treads Leg Aluminum Leg Flight Unit Flight Unit Utility Small Storage Unit Device Improved Terrain Scanner Storage Small Storage Unit Protection Hardened Medium Armor Plating Weapon Light Assault Rifle Energy Gun Small Laser Energy Cannon Light EM Pulse Cannon Ballistic Gun Light Assault Rifle Ballistic Cannon Advanced Assault Cannon Slashing Weapon Chainsword Build | -11 -10 -9 -8 -8 -7 -7 -6 ------- Run | Yrd Mat Mat Mat Sto Fac DSF Fac Slots Evolved 8 | . . 2 2 . 2 . 2 Power 1 | . . . 1 . . . . Propulsion 3 | . . 1 . . 1 . 1 Utility 2 | . . . 1 . 1 . . Weapon 2 | . . 1 . . . . 1 Parts Attached 58 | 6 1 11 2 9 . 19 10 Power 9 | 1 . 2 . 2 . 3 1 Engine 8 | 1 . 2 . 2 . 2 1 Core 1 | . . . . . . 1 . Reactor . | . . . . . . . . Propulsion 20 | 2 . 6 . 5 . 5 2 Treads 3 | 2 . . . 1 . . . Leg 14 | . . 3 . 4 . 5 2 Wheel . | . . . . . . . . Hover . | . . . . . . . . Flight 3 | . . 3 . . . . . Utility 13 | 1 1 . 2 2 . 5 2 Device 7 | . 1 . . 2 . 2 2 Storage 1 | 1 . . . . . . . Processor . | . . . . . . . . Hackware . | . . . . . . . . Protection 5 | . . . 2 . . 3 . Artifact . | . . . . . . . . Weapon 16 | 2 . 3 . . . 6 5 Energy Gun 5 | 1 . 1 . . . 1 2 Energy Cannon 5 | . . 1 . . . 3 1 Ballistic Gun 4 | 1 . 1 . . . 1 1 Ballistic Cannon 1 | . . . . . . 1 . Launcher . | . . . . . . . . Special Weapon . | . . . . . . . . Impact Weapon . | . . . . . . . . Slashing Weapon 1 | . . . . . . . 1 Piercing Weapon . | . . . . . . . . Special Melee Weapon . | . . . . . . . . Unidentified Prototypes . | . . . . . . . . Parts Lost 49 | . . 6 . 9 . 17 17 Power 9 | . . 1 . 3 . 3 2 Propulsion 14 | . . 2 . 2 . 4 6 Utility 12 | . . 1 . 2 . 4 5 Weapon 14 | . . 2 . 2 . 6 4 Highest Loss Streak 11 | . . 6 . 4 . 9 11 To Critical Strikes 2 | . . . . . . 1 1 Average Backups 3 | 1 4 4 4 4 5 3 . Power 1 | . 1 1 1 1 1 1 . Propulsion 2 | . 2 2 3 2 3 2 . Utility . | . . . . . 1 . . Weapon . | . 1 . . . . . . Tool/Special . | . . . . . . . . Unused Backups 2 | . . . . 1 . . 1 Power . | . . . . . . . . Propulsion 1 | . . . . 1 . . . Utility . | . . . . . . . . Weapon 1 | . . . . . . . 1 Tool/Special . | . . . . . . . . Average Slot Usage (%) 78 | . 90 77 86 85 38 61 58 Engine 10 | . 14 10 13 10 7 10 5 Treads 4 | . 28 4 . 1 . . . Leg 18 | . . 18 27 22 15 18 18 Device 6 | . 5 1 . 11 . 3 9 Storage 7 | . 14 11 9 4 . 3 5 Protection 5 | . . . 9 9 7 5 1 Energy Gun 8 | . 14 10 9 8 . 2 6 Energy Cannon 6 | . . 7 9 8 . 9 4 Ballistic Gun 8 | . 14 9 9 9 7 1 3 Peak Build Rating 38 | 6 7 10 17 17 8 35 38 Average Rating 14 | 4 6 8 13 15 8 21 26 On Entrance 9 | . 6 7 10 17 8 8 18 Naked Turns . | . . . . . . . . Heaviest Build 60 | 12 13 16 30 30 16 60 47 Greatest Support 50 | 40 40 40 33 33 20 44 50 Greatest Overweight (x) 2 | 1 . 2 1 2 . 2 2 Average Overweight (x) . | . . . . . . . . Largest Inventory Capacity 8 | 8 8 8 8 8 5 8 8 Average Capacity 7 | 6 8 8 8 6 5 6 7 Most Carried 7 | 4 4 7 5 5 5 5 3 Average Carried 3 | 1 4 4 4 4 5 3 . Final Capacity 8 | 8 8 8 8 5 5 8 5 Final Carried 5 | 4 4 5 4 5 5 3 2 Class Distribution -------------------- 27% | Mutant 25% | Tank 16% | Gunner 11% | Scavenger-Tank 9% | Scavenger-Mutant 4% | Commander-Tank 3% | Scavenger-Gunner Dominant Class ---------------- Mutant | -10/Materials Gunner | -9/Materials Tank | -8/Materials Tank | -8/Storage Tank | -7/Factory Scavenger-Mutant | -7/DSF Scavenger-Tank | -6/Factory Resources | -11 -10 -9 -8 -8 -7 -7 -6 ----------- Run | Yrd Mat Mat Mat Sto Fac DSF Fac Matter Collected 1025 | 133 . 235 114 93 . 250 200 Remotely . | . . . . . . . . Salvage Created 1868 | . . 143 167 682 . 471 405 Parts 93 | . . 15 9 25 . 28 16 Haulers Intercepted . | . . . . . . . . Recyclers Shooed . | . . . . . . . . Parts Field Recycled . | . . . . . . . . Retrieved Matter . | . . . . . . . . Parts Self-Destructed . | . . . . . . . . Prevented . | . . . . . . . . Kills | -11 -10 -9 -8 -8 -7 -7 -6 ------- Run | Yrd Mat Mat Mat Sto Fac DSF Fac Combat Hostiles Destroyed 37 | . . 8 3 9 . 9 8 Melee 2 | . . . . . . . 2 Guns 14 | . . 7 . 1 . 3 3 Cannons 17 | . . 1 3 5 . 6 2 AOE 1 | . . . . 1 . . . Classes Destroyed 11 | . . 2 1 4 . 3 1 Recycler 1 | . . . . 1 . . . Mechanic 1 | . . . . 1 . . . Watcher 1 | . . . . 1 . . . Swarmer 8 | . . 7 . . . . 1 Grunt 17 | . . 1 2 7 . 2 5 Brawler 1 | . . . . . . . 1 Sentry 3 | . . . 1 2 . . . Specialist 5 | . . . . . . 5 . Hunter 1 | . . . . 1 . . . Programmer 2 | . . . . . . 1 1 Heavy 1 | . . . . . . 1 . Best Kill Streak 7 | . . 7 2 2 . 3 4 Combat Bots Only 7 | . . 7 2 2 . 3 4 Max Kills in Single Turn 2 | . . 1 1 2 . 1 1 Gunslinging . | . . . . . . . . Exploded 1 | . . . . 1 . . . Melee 1 | . . . . . . . 1 Uniques/NPCs Destroyed . | . . . . . . . . Combat | -11 -10 -9 -8 -8 -7 -7 -6 -------- Run | Yrd Mat Mat Mat Sto Fac DSF Fac Hostile Shots Fired 569 | . 20 101 17 96 . 179 156 Missed 164 | . 7 18 4 36 . 68 31 Hits 405 | . 13 83 13 60 . 111 125 Melee 3 | . . . . . . . 3 Projectile 402 | . 13 83 13 60 . 111 122 Critical Strikes 13 | . . . 2 3 . 5 3 Damage Taken 6066 | . 162 665 191 919 . 2194 1935 Core 1435 | . 41 123 13 119 . 286 853 Absorbed by Shields . | . . . . . . . . Ignored by Resistances 164 | . . . . . . . 164 Regen/Repaired (Parts) 65 | . . . . 65 . . . Core Remaining (%) 77 | 100 83 69 . 76 . 59 . Volleys Fired 128 | . . 22 11 37 . 39 19 Largest 3 | . . 3 3 3 . 3 3 Hottest 228 | . . 116 116 116 . 200 228 Shots Fired 292 | . . 38 30 110 . 70 44 Gun 176 | . . 34 19 74 . 17 32 Cannon 116 | . . 4 11 36 . 53 12 Launcher . | . . . . . . . . Special . | . . . . . . . . Kinetic 94 | . . 12 8 37 . 21 16 Thermal 147 | . . 22 11 37 . 49 28 Explosive . | . . . . . . . . Electromagnetic 51 | . . 4 11 36 . . . Robot Hit Streak 14 | . . 8 7 14 . 7 13 Robot Miss Streak 6 | . . 6 4 2 . 4 4 Penetration Max . | . . . . . . . . Secondary Targets 2 | . . 2 . . . . . Max Gunslinging Chain 1 | . . 1 . . . . . Shots Hit Robots 183 | . . 18 18 75 . 37 35 Core Hits 74 | . . 8 6 27 . 17 16 Critical Kills . | . . . . . . . . Critical Parts Destroyed . | . . . . . . . . Critical Strikes 3 | . . . . 2 . . 1 Corrupt 2 | . . . . 2 . . . Sever 1 | . . . . . . . 1 Melee Attacks 11 | . . . . . . . 11 Impact . | . . . . . . . . Slashing 11 | . . . . . . . 11 Piercing . | . . . . . . . . Sneak Attacks 1 | . . . . . . . 1 Combat Hostiles . | . . . . . . . . Follow-up Attacks . | . . . . . . . . Damage Inflicted 3664 | . . 249 311 1290 . 888 926 Guns 1304 | . . 181 97 435 . 149 442 Cannons 1948 | . . 68 214 738 . 739 189 Explosions 96 | . . . . 96 . . . Melee 262 | . . . . . . . 262 Ramming 54 | . . . . 21 . . 33 Kinetic 665 | . . 45 18 184 . 246 172 Thermal 1663 | . . 136 79 347 . 642 459 Explosive . | . . . . . . . . Electromagnetic 1020 | . . 68 214 738 . . . Impact . | . . . . . . . . Slashing 262 | . . . . . . . 262 Piercing . | . . . . . . . . Highest Corruption 3 | . . . . . . 1 3 Average Corruption 1 | . . . . . . 1 2 Corruption Purged . | . . . . . . . . Corruption Blocked . | . . . . . . . . Effects 7 | . . . . . . . 7 Message Errors 2 | . . . . . . . 2 Matter Fused 2 | . . . . . . . 2 Heat Flow Errors 1 | . . . . . . . 1 Energy Discharges 1 | . . . . . . . 1 Data Loss (minor) 1 | . . . . . . . 1 Overload Shots . | . . . . . . . . Overflow Damage 46 | . . . 1 19 . . 26 Projectiles 20 | . . . 1 19 . . . Explosions . | . . . . . . . . Melee 26 | . . . . . . . 26 Knockbacks 1 | . . . . 1 . . . Impact 1 | . . . . 1 . . . Kinetic . | . . . . . . . . Secondary . | . . . . . . . . Self-Inflicted Damage . | . . . . . . . . Shots . | . . . . . . . . Rammed . | . . . . . . . . Targets Rammed 18 | . . . . 7 . . 11 Kicked 18 | . . . . 7 . . 11 Crushed . | . . . . . . . . Highest Temperature 559 | . . 204 545 559 . 251 473 Average Temperature 163 | . . 63 205 169 . 101 200 Received Heat Transfer 1149 | . 90 24 135 459 . 36 405 Effects 27 | . . . 8 13 . . 6 Shutdowns 8 | . . . 3 4 . . 1 Energy Bleed 3 | . . . . 3 . . . Interference 8 | . . . 3 4 . . 1 Matter Decay 2 | . . . 1 . . . 1 Short Circuit 2 | . . . 1 1 . . . Damage (minor) 2 | . . . . 1 . . 1 Damage (major) 2 | . . . . . . . 2 Siege Activations . | . . . . . . . . Martial Activations . | . . . . . . . . Shielding Activations . | . . . . . . . . Robots Disrupted . | . . . . . . . . Combat Hostiles . | . . . . . . . . Robots Corrupted 2 | . . . . 2 . . . Combat Hostiles 2 | . . . . 2 . . . Parts Fried 4 | . . . . 4 . . . Impact Corruptions . | . . . . . . . . Robots Melted 1 | . . . . . . . 1 Combat Hostiles 1 | . . . . . . . 1 Parts Melted 4 | . . . . 1 . 1 2 Heat Transferred 3125 | . . 300 175 625 . 1207 818 Parts Sabotaged . | . . . . . . . . Parts Stolen . | . . . . . . . . Parts Stripped . | . . . . . . . . Power Chain Reactions 1 | . . . . 1 . . . Alert | -11 -10 -9 -8 -8 -7 -7 -6 ------- Run | Yrd Mat Mat Mat Sto Fac DSF Fac Maximum Alert Level 1 | . . . . 1 . . . Low Security (%) 92 | 100 100 100 100 76 100 100 100 Level 1 7 | . . . . 23 . . . Level 2 . | . . . . . . . . Level 3 . | . . . . . . . . Level 4 . | . . . . . . . . Level 5 . | . . . . . . . . High Security . | . . . . . . . . Max Security . | . . . . . . . . Sterilizations 1 | . . . . . . 1 . Peak Influence 284 | . 5 80 60 284 116 145 75 Initial 111 | . . 1 . 8 111 81 75 Average 41 | . . 19 18 75 113 67 26 Influence Increases 1584 | . 20 199 145 764 5 265 186 Destroy 0b10 Robot/C 980 | . . 160 60 420 . 180 160 Destroy 0b10 Robot/NC 15 | . . . . 15 . . . Destroy Leader 232 | . . 30 10 132 . 40 20 Allied During Kill 164 | . . . . 164 . . . Successful Hack 20 | . 5 9 . 1 5 . . Disable Machine 30 | . . . 15 15 . . . Destroy Structure 8 | . . . . 2 . . 6 Lose Combat Pursuer 135 | . 15 . 60 15 . 45 . Influence Decreases 1564 | . 15 204 125 538 135 236 311 Entered New Map 256 | . . 4 . 12 135 35 70 Time Decay 681 | . 15 140 125 269 . . 132 Lost Part 400 | . . 50 . 80 . 161 109 Lost Ally 180 | . . . . 140 . 40 . Purge Threat 47 | . . 10 . 37 . . . Squads Dispatched 13 | . 1 1 2 4 . 3 2 Investigation 3 | . . 1 1 1 . . . Extermination 1 | . . . . . . . 1 Reinforcement 9 | . 1 . 1 3 . 3 1 Assault . | . . . . . . . . Garrison . | . . . . . . . . Intercept . | . . . . . . . . Searches Triggered . | . . . . . . . . Construction Impeded . | . . . . . . . . Haulers Reinforced . | . . . . . . . . Active Scanning Responses . | . . . . . . . . Cargo Convoy Interrupts . | . . . . . . . . Stealth | -11 -10 -9 -8 -8 -7 -7 -6 --------- Run | Yrd Mat Mat Mat Sto Fac DSF Fac Distress Signals 11 | . 3 1 2 5 . . . Communications Jammed . | . . . . . . . . Distress Signals . | . . . . . . . . Times Spotted 91 | . 8 9 9 33 . 18 14 Peak Tracking Total 7 | . 7 6 4 4 . 5 5 Tactical Retreats 8 | . 1 . 3 1 . 3 . Traps | -11 -10 -9 -8 -8 -7 -7 -6 ------- Run | Yrd Mat Mat Mat Sto Fac DSF Fac Traps Triggered . | . . . . . . . . Indirectly . | . . . . . . . . Trap Hack Attempts . | . . . . . . . . Triggered . | . . . . . . . . Disarmed . | . . . . . . . . Reprogrammed . | . . . . . . . . Reused . | . . . . . . . . Traps Extracted . | . . . . . . . . Installed . | . . . . . . . . Triggered . | . . . . . . . . Machines | -11 -10 -9 -8 -8 -7 -7 -6 ---------- Run | Yrd Mat Mat Mat Sto Fac DSF Fac Machines Disabled 2 | . . . 1 1 . . . Max in Single Turn 1 | . . . 1 1 . . . Machines Repaired . | . . . . . . . . Machines Dismantled . | . . . . . . . . Machines Sabotaged . | . . . . . . . . Overloaded Fab Kills . | . . . . . . . . Hacking | -11 -10 -9 -8 -8 -7 -7 -6 --------- Run | Yrd Mat Mat Mat Sto Fac DSF Fac Machines Accessed 13 | . 1 5 . 5 1 . 1 Terminals 10 | . 1 4 . 3 1 . 1 Fabricators . | . . . . . . . . Repair Stations 2 | . . 1 . 1 . . . Recycling Units 1 | . . . . 1 . . . Scanalyzers . | . . . . . . . . Garrison Access . | . . . . . . . . Total Hacks 28 | . 3 11 . 12 1 . 1 Successful 18 | . 1 6 . 10 1 . . Failed 10 | . 2 5 . 2 . . 1 Catastrophic 1 | . . . . 1 . . . Database Lockouts . | . . . . . . . . Manual 6 | . 2 1 . 2 1 . . Terminals 21 | . 3 10 . 6 1 . 1 Fabricators . | . . . . . . . . Repair Stations 3 | . . 1 . 2 . . . Recycling Units 4 | . . . . 4 . . . Scanalyzers . | . . . . . . . . Garrison Access . | . . . . . . . . Terminal Hacks 12 | . 1 6 . 4 1 . . Record 3 | . . 1 . 2 . . . Robot Analysis 1 | . . 1 . . . . . Open DSF 1 | . . . . . 1 . . Terminal Index 1 | . 1 . . . . . . Alert Level 2 | . . 1 . 1 . . . Unreport Threat 2 | . . 1 . 1 . . . Dispatch Records 1 | . . 1 . . . . . Security Status 1 | . . 1 . . . . . Fabricator Hacks . | . . . . . . . . Repair Station Hacks 2 | . . . . 2 . . . Scan Component 1 | . . . . 1 . . . Repair 1 | . . . . 1 . . . Recycling Unit Hacks 4 | . . . . 4 . . . Recycle Component 1 | . . . . 1 . . . Process 1 | . . . . 1 . . . Report Inventory 1 | . . . . 1 . . . Retrieve Matter 1 | . . . . 1 . . . Scanalyzer . | . . . . . . . . Garrison Access Hacks . | . . . . . . . . Unauthorized Hacks . | . . . . . . . . Terminals . | . . . . . . . . Fabricators . | . . . . . . . . Repair Stations . | . . . . . . . . Recycling Units . | . . . . . . . . Scanalyzers . | . . . . . . . . Garrison Access . | . . . . . . . . Data Cores Recovered . | . . . . . . . . Used . | . . . . . . . . Hacking Detections 6 | . . 3 . 3 . . . Full Trace Events 2 | . . 1 . 1 . . . Feedback Events . | . . . . . . . . Feedback Blocked . | . . . . . . . . Robot Schematics Acquired . | . . . . . . . . Robots Built . | . . . . . . . . Authchips . | . . . . . . . . Time . | . . . . . . . . Total Robot Build Rating . | . . . . . . . . Part Schematics Acquired . | . . . . . . . . Parts Built . | . . . . . . . . Authchips . | . . . . . . . . Time . | . . . . . . . . Total Part Build Rating . | . . . . . . . . Parts Repaired 1 | . . . . 1 . . . Time 32 | . . . . 32 . . . Parts Recycled 1 | . . . . 1 . . . Recycled Matter 22 | . . . . 22 . . . Retrieved Matter 22 | . . . . 22 . . . Retrieved Components . | . . . . . . . . Parts Scanalyzed . | . . . . . . . . Part Schematics Acquired . | . . . . . . . . Parts Damaged . | . . . . . . . . Bothacking | -11 -10 -9 -8 -8 -7 -7 -6 ------------ Run | Yrd Mat Mat Mat Sto Fac DSF Fac Used RIF Installer . | . . . . . . . . Robots Hacked . | . . . . . . . . Non-combat . | . . . . . . . . Combat . | . . . . . . . . Robot Hacks Applied . | . . . . . . . . Relay Couplers Released . | . . . . . . . . Fabnet Peak Effective % . | . . . . . . . . Robots Rewired . | . . . . . . . . Allies Hacked . | . . . . . . . . Hacks Repelled . | . . . . . . . . Allies | -11 -10 -9 -8 -8 -7 -7 -6 -------- Run | Yrd Mat Mat Mat Sto Fac DSF Fac Total Allies 10 | . . . . 10 . . . Largest Group 10 | . . . . 10 2 1 . Highest-Rated Group 173 | . . . . 173 32 16 . Highest-Rated Ally 29 | . . . . 29 16 16 . Initial Warlord ECA Mod 9 | . . . . . . . 9 Total Orders 1 | . . . . 1 . . . AID 1 | . . . . 1 . . . Ally Attacks 96 | . . . . 89 . 7 . Total Damage 1195 | . . . . 1117 . 78 . Kills 12 | . . . . 12 . . . Allies Corrupted . | . . . . . . . . Allies Melted . | . . . . . . . . Intel | -11 -10 -9 -8 -8 -7 -7 -6 ------- Run | Yrd Mat Mat Mat Sto Fac DSF Fac Active Infowar (turns) 992 | . 144 83 . 765 . . . Terrain 765 | . . . . 765 . . . Seismic 227 | . 144 83 . . . . . Robot Analysis Total 1 | . . 1 . . . . . Derelict Logs Recovered . | . . . . . . . . Drone Launches . | . . . . . . . . Drone Recoveries . | . . . . . . . . Exploration | -11 -10 -9 -8 -8 -7 -7 -6 ------------- Run | Yrd Mat Mat Mat Sto Fac DSF Fac Turns Passed 3142 | 124 378 487 382 985 10 405 371 Spaces Moved 1791 | 77 236 336 234 485 9 173 241 Core 97 | 13 . 12 . . . . 72 Treads 446 | 64 236 49 . 97 . . . Legs 1218 | . . 245 234 388 9 173 169 Wheels . | . . . . . . . . Hover . | . . . . . . . . Flight 30 | . . 30 . . . . . Fastest Speed 34 | 50 160 34 120 120 120 90 50 Average Speed 143 | 145 160 121 138 166 120 159 102 Slowest Speed 265 | 160 160 200 190 260 120 265 190 Overloaded Moves . | . . . . . . . . Propulsion Burnouts . | . . . . . . . . Robots Hopped . | . . . . . . . . Potential Cave-ins . | . . . . . . . . Cave-ins Triggered . | . . . . . . . . Exploration Rate (%) 33 | 4 34 34 23 52 . 80 6 Regions Visited 7 Branch Regions 1 Pre-discovered Areas 1 | . . . . 1 . . . Known Exits Taken 1 | . . . . . 1 . . Unknown Exits Taken 5 | 1 1 1 1 1 . . . Scrap Searched . | . . . . . . . . Spaces Dug . | . . . . . . . . Terrain Destroyed 7 | . . . . 2 . . 5 Melee . | . . . . . . . . Projectile 5 | . . . . . . . 5 AOE 2 | . . . . 2 . . . Terrain Rammed . | . . . . . . . . Walls Destroyed . | . . . . . . . . Machines Disabled . | . . . . . . . . Actions | -11 -10 -9 -8 -8 -7 -7 -6 --------- Run | Yrd Mat Mat Mat Sto Fac DSF Fac Total 2106 | 86 236 384 269 581 8 235 307 Wait 56 | . . . 20 32 . . 4 Move 1784 | 76 235 335 233 484 8 172 241 Hop . | . . . . . . . . Pick Up 13 | 4 . 3 . 1 . 1 4 Fast Attach 47 | 6 1 6 2 8 . 18 6 Attach 21 | . . 9 2 . . 2 8 Detach 16 | . . 8 1 3 . 1 3 Swap 2 | . . . . 2 . . . Drop 8 | . . 1 . 5 . 2 . Fire 128 | . . 22 11 37 . 39 19 Melee 11 | . . . . . . . 11 Ram . | . . . . . . . . Kick 18 | . . . . 7 . . 11 Crush . | . . . . . . . . Escape Stasis . | . . . . . . . . Rewire 2 | . . . . 2 . . . Trap . | . . . . . . . . Miscellaneous . | . . . . . . . . Route ------- -11/Scrapyard -10/Materials -9/Materials (discovered 2 exits: [*Mat] / [*Min]) -8/Materials -8/Storage (discovered 2 exits: *Fac / [Rec]) -7/Factory -7/DSF -6/Factory History --------- Turn | Location | Event 12 | -11/Scrapyard | Discovered new exit (range 14) 125 | -11/Scrapyard | Entered Materials 316 | -10/Materials | Build established: Mutant 330 | -10/Materials | Discovered new exit (range 13) 503 | -10/Materials | Entered another Materials area 503 | -9/Materials | Evolved 2 slots: Propulsion x1, Weapon x1 644 | -9/Materials | Destroyed 7 combat bots 646 | -9/Materials | Lost 6 parts (1p2n1u2w) 734 | -9/Materials | Discovered new exit (range 16) 892 | -9/Materials | Build established: Gunner 966 | -9/Materials | Discovered new exit (range 16) 990 | -9/Materials | Entered another Materials area 990 | -8/Materials | Evolved 2 slots: Power x1, Utility x1 1306 | -8/Materials | Discovered new exit (range 9) 1372 | -8/Materials | Entered Storage 1436 | -8/Storage | Build established: Tank 1599 | -8/Storage | Repaired Lgt. EM Pulse Cannon 2013 | -8/Storage | Learned location of Armory (-4) 2039 | -8/Storage | Assisted by bots powering up and referring to "LRC-V3" 2094 | -8/Storage | Discovered new exit (range 11) 2153 | -8/Storage | Lost 4 allies 2328 | -8/Storage | Lost 3 allies 2335 | -8/Storage | Discovered new exit (range 16) 2357 | -8/Storage | Entered Factory 2357 | -7/Factory | Accompanied by 2 allies 2357 | -7/Factory | Evolved 2 slots: Propulsion x1, Utility x1 2358 | -7/Factory | Lost 4 parts (1n1u2w) 2363 | -7/Factory | Identified exit to DSF 2367 | -7/Factory | Entered DSF 2367 | -7/DSF | Accompanied by 2 allies 2385 | -7/DSF | Additional patrols routed to DSF 2531 | -7/DSF | Lost 9 parts (2p2n2u3w) 2651 | -7/DSF | Discovered new exit (range 15) 2688 | -7/DSF | Sterilization system engaged 2708 | -7/DSF | Ambient heat levels rising (+10) 2723 | -7/DSF | Ambient heat levels rising (+10) 2738 | -7/DSF | Ambient heat levels rising (+10) 2753 | -7/DSF | Ambient heat levels rising (+10) 2768 | -7/DSF | Ambient heat levels rising (+10) 2770 | -7/DSF | Lost 3 parts (1p1u1w) 2772 | -7/DSF | Entered Factory 2772 | -6/Factory | Evolved 2 slots: Propulsion x1, Weapon x1 2890 | -6/Factory | Lost 6 parts (1p2n2u1w) 3093 | -6/Factory | Core integrity fell below 50% 3116 | -6/Factory | Core integrity fell below 20% 3117 | -6/Factory | Lost 11 parts (1p4n3u3w) 3143 | -6/Factory | Destroyed by P-60 Hacker with Shock Rifle Last Messages --------------- Critical hit (Destroy). Thermal Shield destroyed. S-27 Virus destroyed. K-01 Serf collects debris. Carbon-fiber Leg destroyed. Hvy. Laser destroyed. Carbon-fiber Leg destroyed. K-01 Serf collects debris. Sml. Storage Unit destroyed. Adv. Heat Sink destroyed. Sneak attack on O-24 Administrator. Destroyed Lgt. Deuterium Engine. HKCGGD7MJ